lending/lending_fUSD_20251016
["ID","MTS","AMOUNT","RATE_DAILY","PERIOD"]
[391561948,1760655051247,-500.0,0.00030865,120]
[391561949,1760655051257,-2761.24,0.00030865,120]
[391561950,1760655051272,-500.0,0.00030865,120]
[391561951,1760655051282,-2761.24,0.00030865,120]
[391561952,1760655051292,-500.0,0.00030865,120]
[391561953,1760655051302,-500.0,0.00030865,120]
[391561954,1760655051312,-500.0,0.00030865,120]
[391561955,1760655051323,-500.0,0.00030865,120]
[391561956,1760655051333,-2761.24,0.00030865,120]
[391561957,1760655051345,-500.0,0.00030865,120]
[391561958,1760655051355,-500.0,0.00030865,120]
[391561959,1760655051366,-500.0,0.00030865,120]
[391561960,1760655051376,-500.0,0.00030865,120]
[391561961,1760655051386,-500.0,0.00030865,120]
[391561962,1760655051396,-2761.24,0.00030865,120]
[391561963,1760655051406,-500.0,0.00030865,120]
[391561964,1760655051416,-500.0,0.00030865,120]
[391561965,1760655051427,-500.0,0.00030865,120]
[391561966,1760655051439,-500.0,0.00030865,120]
[391561967,1760655051449,-500.0,0.00030865,120]
[391561968,1760655051459,-2761.24,0.00030865,120]
[391561969,1760655051470,-500.0,0.00030865,120]
[391561970,1760655051480,-333.5953141,0.00030865,120]
[391561971,1760655051490,-500.0,0.00030865,120]
[391561972,1760655051500,-1657.98,0.00030865,120]
[391561973,1760655051510,-500.0,0.00030865,120]
[391561974,1760655051520,-2761.24,0.00030865,120]
[391561975,1760655051531,-500.0,0.00030865,120]
[391561976,1760655051543,-500.0,0.00030865,7]
[391561977,1760655051554,-500.0,0.00030865,120]
[391561978,1760655051565,-1657.98,0.00030865,120]
[391561979,1760655051574,-500.0,0.00030865,120]
[391561980,1760655051583,-2761.24,0.00030865,120]
[391561981,1760655051593,-501.81,0.00030865,120]
[391561982,1760655051603,-500.0,0.00030865,7]
[391561983,1760655051613,-500.0,0.00030865,120]
[391561984,1760655051623,-1657.98,0.00030865,120]
[391561985,1760655051634,-500.0,0.00030865,120]
[391561986,1760655051644,-500.0,0.00030865,120]
[391561987,1760655051654,-2761.24,0.00030865,120]
[391561988,1760655051664,-500.0,0.00030865,7]
[391561989,1760655051674,-500.0,0.00030865,120]
[391561990,1760655051684,-1657.98,0.00030865,120]
[391561991,1760655051693,-334.45973445,0.00030865,120]
[391561992,1760655051703,-500.0,0.00030865,120]
[391561993,1760655051713,-2761.24,0.00030865,120]
[391561994,1760655051723,-500.0,0.00030865,7]
[391561995,1760655051732,-1657.98,0.00030865,120]
[391561996,1760655051742,-500.0,0.00030865,120]
[391561997,1760655051752,-500.0,0.00030865,120]
[391561998,1760655051762,-2761.24,0.00030865,120]
[391561999,1760655051772,-1657.98,0.00030865,120]
[391562000,1760655051782,-500.0,0.00030865,7]
[391562001,1760655051791,-500.0,0.00030865,120]
[391562002,1760655051800,-2761.24,0.00030865,120]
[391562003,1760655051810,-500.0,0.00030865,120]
[391562004,1760655051819,-500.0,0.00030865,120]
[391562005,1760655051828,-1657.98,0.00030865,120]
[391562006,1760655051838,-500.0,0.00030865,7]
[391562007,1760655051848,-500.0,0.00030865,120]
[391562008,1760655051857,-2761.24,0.00030865,120]
[391562009,1760655051866,-500.0,0.00030865,120]
[391562010,1760655051876,-500.0,0.00030865,120]
[391562011,1760655051885,-500.0,0.00030865,120]
[391562012,1760655051894,-500.0,0.00030865,7]
[391562013,1760655051904,-1657.98,0.00030865,120]
[391562014,1760655051913,-2761.24,0.00030865,120]
[391562015,1760655051923,-500.0,0.00030865,120]
[391562016,1760655051931,-266.83101151,0.00030865,120]
[391562017,1760655051940,-500.0,0.00030865,120]
[391562018,1760655051950,-2761.24,0.00030865,120]
[391562019,1760655051959,-500.0,0.00030865,120]
[391562020,1760655051968,-500.0,0.00030865,7]
[391562021,1760655051978,-1657.98,0.00030865,120]
[391562022,1760655051987,-500.0,0.00030865,120]
[391562023,1760655051996,-500.0,0.00030865,120]
[391562024,1760655052005,-2761.33477374,0.00030865,120]
[391562025,1760655052014,-500.0,0.00030865,120]
[391562026,1760655052024,-500.0,0.00030865,120]
[391562027,1760655052033,-500.0,0.00030865,7]
[391562028,1760655052042,-1657.98,0.00030865,120]
[391562029,1760655052052,-500.0,0.00030865,120]
[391562030,1760655052062,-500.0,0.00030865,120]
[391562031,1760655052071,-1657.98,0.00030865,120]
[391562032,1760655052080,-500.0,0.00030865,120]
[391562033,1760655052090,-500.0,0.00030865,120]
[391562034,1760655052099,-500.0,0.00030865,7]
[391562035,1760655052108,-303.98,0.00030865,120]
[391562036,1760655052117,-500.0,0.00030865,120]
[391562037,1760655052127,-1657.98,0.00030865,120]
[391562038,1760655052136,-500.0,0.00030865,120]
[391562039,1760655052145,-500.0,0.00030865,120]
[391562040,1760655052155,-500.0,0.00030865,7]
[391562041,1760655052164,-500.0,0.00030865,120]
[391562042,1760655052173,-500.0,0.00030865,120]
[391562043,1760655052183,-1657.98,0.00030865,120]
[391562044,1760655052192,-500.0,0.00030865,120]
[391562045,1760655052201,-500.0,0.00030865,120]
[391562046,1760655052211,-500.0,0.00030865,120]
[391562047,1760655052220,-224.20372315,0.00030865,7]
[391562048,1760655052230,-500.0,0.00030865,120]
[391562049,1760655052239,-500.0,0.00030865,120]
[391562050,1760655052249,-1657.98,0.00030865,120]
[391562051,1760655052259,-500.0,0.00030865,120]
[391562052,1760655052272,-500.0,0.00030865,120]
[391562053,1760655052282,-500.0,0.00030865,120]
[391562054,1760655052291,-500.0,0.00030865,120]
[391562055,1760655052300,-1657.98,0.00030865,120]
[391562056,1760655052310,-500.0,0.00030865,120]
[391562057,1760655052320,-500.0,0.00030865,120]
[391562058,1760655052329,-500.0,0.00030865,120]
[391562059,1760655052340,-500.0,0.00030865,120]
[391562060,1760655052349,-1657.98,0.00030865,120]
[391562061,1760655052358,-500.0,0.00030865,120]
[391562062,1760655052368,-500.0,0.00030865,120]
[391562063,1760655052377,-500.0,0.00030865,120]
[391562064,1760655052386,-500.0,0.00030865,120]
[391562065,1760655052395,-500.0,0.00030865,120]
[391562066,1760655052405,-1657.98,0.00030865,120]
[391562067,1760655052414,-500.0,0.00030865,120]
[391562068,1760655052423,-244.29,0.00030865,120]
[391562069,1760655052437,-500.0,0.00030865,120]
[391562070,1760655052447,-500.0,0.00030865,120]
[391562071,1760655052456,-500.0,0.00030865,120]
[391562072,1760655052466,-1657.98,0.00030865,120]
[391562073,1760655052476,-500.0,0.00030865,120]
[391562074,1760655052485,-2504.61,0.00030865,120]
[391562075,1760655052494,-500.0,0.00030865,120]
[391562076,1760655052504,-638.7,0.00030865,120]
[391562077,1760655052513,-500.0,0.00030865,120]
[391562078,1760655052523,-500.0,0.00030865,120]
[391562079,1760655052533,-1657.98,0.00030865,120]
[391562080,1760655052542,-500.0,0.00030865,120]
[391562081,1760655052552,-2504.61,0.00030865,120]
[391562082,1760655052562,-433.06,0.00030865,120]
[391562083,1760655052571,-374.14,0.00030865,120]
[391562084,1760655052581,-638.7,0.00030865,120]
[391562085,1760655052590,-500.0,0.00030865,120]
[391562086,1760655052599,-1657.98,0.00030865,120]
[391562087,1760655052608,-2504.61,0.00030865,120]
[391562088,1760655052618,-500.0,0.00030865,120]
[391562089,1760655052627,-500.0,0.00030865,120]
[391562090,1760655052636,-500.0,0.00030865,120]
[391562091,1760655052647,-638.7,0.00030865,120]
[391562092,1760655052656,-2504.61,0.00030865,120]
[391562093,1760655052665,-500.0,0.00030865,120]
[391562094,1760655052675,-1657.98,0.00030865,120]
[391562095,1760655052684,-500.0,0.00030865,120]
[391562096,1760655052694,-500.0,0.00030865,120]
[391562097,1760655052703,-638.7,0.00030865,120]
[391562098,1760655052713,-2504.61,0.00030865,120]
[391562099,1760655052722,-1657.98,0.00030865,120]
[391562100,1760655053225,-500.0,0.00030865,120]
[391562101,1760655053236,-500.0,0.00030865,120]
[391562102,1760655053247,-500.0,0.00030865,120]
[391562103,1760655053257,-638.7,0.00030865,120]
[391562104,1760655053272,-2504.61,0.00030865,120]
[391562105,1760655053282,-1657.98,0.00030865,120]
[391562106,1760655053292,-500.0,0.00030865,120]
[391562107,1760655053303,-500.0,0.00030865,120]
[391562108,1760655053313,-1360.76,0.00030865,120]
[391562109,1760655053323,-638.7,0.00030865,120]
[391562110,1760655053334,-500.0,0.00030865,120]
[391562111,1760655053345,-2504.61,0.00030865,120]
[391562112,1760655053355,-1658.07276089,0.00030865,120]
[391562113,1760655053365,-164.6955259,0.00030865,120]
[391562114,1760655053375,-500.0,0.00030865,120]
[391562115,1760655053386,-1360.76,0.00030865,120]
[391562116,1760655053397,-638.7,0.00030865,120]
[391562117,1760655053407,-500.0,0.00030865,120]
[391562118,1760655053420,-2504.61,0.00030865,120]
[391562119,1760655053429,-500.0,0.00030865,120]
[391562120,1760655053439,-500.0,0.00030865,120]
[391562121,1760655053449,-1360.76,0.00030865,120]
[391562122,1760655053459,-638.7,0.00030865,120]
[391562123,1760655053469,-2504.61,0.00030865,120]
[391562124,1760655053478,-500.0,0.00030865,120]
[391562125,1760655053487,-500.0,0.00030865,120]
[391562126,1760655053497,-1360.76,0.00030865,120]
[391562127,1760655053507,-2504.61,0.00030865,120]
[391562128,1760655053516,-500.0,0.00030865,120]
[391562129,1760655053526,-1360.76,0.00030865,120]
[391562130,1760655053536,-500.0,0.00030865,120]
[391562131,1760655053546,-2504.61,0.00030865,120]
[391562132,1760655053556,-500.0,0.00030865,120]
[391562133,1760655053566,-638.7,0.00030865,120]
[391562134,1760655053576,-500.0,0.00030865,120]
[391562135,1760655053585,-1360.76,0.00030865,120]
[391562136,1760655053595,-500.0,0.00030865,120]
[391562137,1760655053605,-2504.61,0.00030865,120]
[391562138,1760655053617,-342.25615734,0.00030865,120]
[391562139,1760655053627,-638.7,0.00030865,120]
[391562140,1760655053636,-500.0,0.00030865,120]
[391562141,1760655053647,-1360.76,0.00030865,120]
[391562142,1760655053656,-500.0,0.00030865,120]
[391562143,1760655053666,-2504.61,0.00030865,120]
[391562144,1760655053676,-638.7,0.00030865,120]
[391562145,1760655053686,-500.0,0.00030865,120]
[391562146,1760655053696,-500.0,0.00030865,120]
[391562147,1760655053706,-1360.76,0.00030865,120]
[391562148,1760655053715,-2504.61,0.00030865,120]
[391562149,1760655053725,-2236.47,0.00030865,30]
[391562150,1760655053735,-638.7,0.00030865,120]
[391562151,1760655053744,-500.0,0.00030865,120]
[391562152,1760655053754,-1360.76,0.00030865,120]
[391562153,1760655053763,-2504.61,0.00030865,120]
[391562154,1760655053773,-2236.47,0.00030865,30]
[391562155,1760655053784,-638.7,0.00030865,120]
[391562156,1760655053794,-500.0,0.00030865,120]
[391562157,1760655053804,-1360.76,0.00030865,120]
[391562158,1760655053814,-2504.61,0.00030865,120]
[391562159,1760655053825,-638.7,0.00030865,120]
[391562160,1760655053835,-500.0,0.00030865,120]
[391562161,1760655053846,-1360.76,0.00030865,120]
[391562162,1760655053856,-638.7,0.00030865,120]
[391562163,1760655053866,-536.70653492,0.00030865,120]
[391562164,1760655053876,-1360.76,0.00030865,120]
[391562165,1760655053886,-2504.61,0.00030865,120]
[391562166,1760655053896,-638.7,0.00030865,120]
[391562167,1760655053905,-1360.76,0.00030865,120]
[391562168,1760655053915,-638.7,0.00030865,120]
[391562169,1760655053924,-500.0,0.00030865,120]
[391562170,1760655053934,-2504.61,0.00030865,120]
[391562171,1760655053943,-1360.76,0.00030865,120]
[391562172,1760655053953,-500.0,0.00030865,120]
[391562173,1760655053963,-638.7,0.00030865,120]
[391562174,1760655053973,-2504.61,0.00030865,120]
[391562175,1760655053983,-1360.76,0.00030865,120]
[391562176,1760655053993,-2504.61,0.00030865,120]
[391562177,1760655054003,-638.7,0.00030865,120]
[391562178,1760655054023,-500.0,0.00030865,120]
[391562179,1760655054035,-1360.76,0.00030865,120]
[391562180,1760655054045,-638.7,0.00030865,120]
[391562181,1760655054055,-500.0,0.00030865,120]
[391562182,1760655054065,-2504.61,0.00030865,120]
[391562183,1760655054076,-1360.76,0.00030865,120]
[391562184,1760655054088,-2504.61,0.00030865,120]
[391562185,1760655054098,-500.0,0.00030865,120]
[391562186,1760655054108,-638.7,0.00030865,120]
[391562187,1760655054119,-1360.76,0.00030865,120]
[391562188,1760655054129,-2504.77481547,0.00030865,120]
[391562189,1760655054140,-638.7,0.00030865,120]
[391562190,1760655054150,-500.0,0.00030865,120]
[391562191,1760655054160,-1360.76,0.00030865,120]
[391562192,1760655054170,-638.7,0.00030865,120]
[391562193,1760655054180,-500.0,0.00030865,120]
[391562194,1760655054191,-1360.76,0.00030865,120]
[391562195,1760655054201,-638.8,0.00030865,120]
[391562196,1760655054212,-500.0,0.00030865,120]
[391562197,1760655054222,-1360.76,0.00030865,120]
[391562198,1760655054232,-500.0,0.00030865,120]
[391562199,1760655054242,-500.0,0.00030865,120]
[391562200,1760655054253,-420.14044624,0.00030865,120]
[391562201,1760655054267,-2236.47,0.00030865,30]
[391562202,1760655054278,-1360.76,0.00030865,120]
[391562203,1760655054288,-500.0,0.00030865,120]
[391562204,1760655054298,-500.0,0.00030865,120]
[391562205,1760655054310,-1956.99250317,0.00030865,30]
[391562206,1760655054759,-279.47749683,0.00030865,30]
[391562207,1760655054772,-500.0,0.00030865,120]
[391562208,1760655054783,-269.43770319,0.00030865,120]
[391562209,1760655054967,-789.44390463,0.00030584,2]
[391562210,1760655054988,-894.67148591,0.00030584,2]
[391562211,1760655054999,-256.50294306,0.00030745,3]
[391562212,1760655055010,-164.16088648,0.00030853,2]
[391562213,1760655055021,-240.113655,0.00030865,30]
[391562214,1760655055034,-215.028151,0.00030865,30]
[391562215,1760655055045,-215.028151,0.00030865,30]
[391562216,1760655055055,-240.113655,0.00030865,30]
[391562217,1760655055066,-215.028151,0.00030865,30]
[391562218,1760655055077,-240.113655,0.00030865,30]
[391562219,1760655055087,-215.028151,0.00030865,30]
[391562220,1760655055098,-240.113655,0.00030865,30]
[391562221,1760655055108,-215.028151,0.00030865,30]
[391562222,1760655055118,-240.113655,0.00030865,30]
[391562223,1760655055128,-215.028151,0.00030865,30]
[391562224,1760655055139,-240.113655,0.00030865,30]
[391562225,1760655055149,-215.028151,0.00030865,30]
[391562226,1760655055159,-240.113655,0.00030865,30]
[391562227,1760655055170,-215.028151,0.00030865,30]
[391562228,1760655055180,-240.113655,0.00030865,30]
[391562229,1760655055190,-215.028151,0.00030865,30]
[391562230,1760655055201,-240.113655,0.00030865,30]
[391562231,1760655055211,-215.028151,0.00030865,30]
[391562232,1760655055222,-240.113655,0.00030865,30]
[391562233,1760655055234,-215.028151,0.00030865,30]
[391562234,1760655055245,-1091.32229681,0.00030865,120]
[391562235,1760655055255,-500.0,0.00030865,120]
[391562236,1760655055269,-500.0,0.00030865,120]
[391562237,1760655055279,-2236.47,0.00030865,30]
[391562238,1760655055289,-500.0,0.00030865,120]
[391562239,1760655055300,-1360.76766506,0.00030865,120]
[391562240,1760655055311,-500.0,0.00030865,120]
[391562241,1760655055321,-500.0,0.00030865,120]
[391562242,1760655055331,-2236.47,0.00030865,30]
[391562243,1760655055341,-539.98363938,0.00030865,120]
[391562244,1760655055352,-500.0,0.00030865,120]
[391562245,1760655055362,-500.0,0.00030865,120]
[391562246,1760655055372,-500.0,0.00030865,120]
[391562247,1760655055382,-2236.47,0.00030865,30]
[391562248,1760655055392,-500.0,0.00030865,120]
[391562249,1760655055408,-500.0,0.00030865,120]
[391562250,1760655055418,-500.0,0.00030865,120]
[391562251,1760655055427,-2236.47,0.00030865,30]
[391562252,1760655055438,-500.0,0.00030865,120]
[391562253,1760655055447,-500.0,0.00030865,120]
[391562254,1760655055458,-500.0,0.00030865,120]
[391562255,1760655055468,-2236.47,0.00030865,30]
[391562256,1760655055478,-500.0,0.00030865,120]
[391562257,1760655055487,-500.0,0.00030865,120]
[391562258,1760655055497,-500.0,0.00030865,120]
[391562259,1760655055506,-2236.47,0.00030865,30]
[391562260,1760655055516,-500.0,0.00030865,120]
[391562261,1760655055526,-500.0,0.00030865,120]
[391562262,1760655055539,-2236.47,0.00030865,30]
[391562263,1760655055549,-500.0,0.00030865,120]
[391562264,1760655055559,-461.49856768,0.00030865,120]
[391562265,1760655055569,-500.0,0.00030865,120]
[391562266,1760655055579,-2236.47,0.00030865,30]
[391562267,1760655055588,-500.0,0.00030865,120]
[391562268,1760655055598,-500.0,0.00030865,120]
[391562269,1760655055608,-2236.47,0.00030865,30]
[391562270,1760655055618,-500.0,0.00030865,120]
[391562271,1760655055629,-500.0,0.00030865,120]
[391562272,1760655055638,-500.0,0.00030865,120]
[391562273,1760655055649,-500.0,0.00030865,120]
[391562274,1760655055659,-500.0,0.00030865,120]
[391562275,1760655055668,-1669.02,0.00030865,120]
[391562276,1760655055678,-2236.47,0.00030865,30]
[391562277,1760655055688,-680.08,0.00030865,120]
[391562278,1760655055698,-500.0,0.00030865,120]
[391562279,1760655055708,-500.0,0.00030865,120]
[391562280,1760655055717,-500.0,0.00030865,120]
[391562281,1760655055727,-1669.02,0.00030865,120]
[391562282,1760655055737,-680.08,0.00030865,120]
[391562283,1760655055746,-1783.78670745,0.00030865,30]
[391562284,1760655055883,-413.59,0.00029513,2]
[391562285,1760655055894,-1684.11539047,0.00030604,2]
[391562286,1760655055904,-20.26051104,0.00030865,30]
[391562287,1760655055917,-219.85314396,0.00030865,30]
[391562288,1760655055927,-215.028151,0.00030865,30]
[391562289,1760655055937,-240.113655,0.00030865,30]
[391562290,1760655055947,-215.028151,0.00030865,30]
[391562291,1760655055958,-215.028151,0.00030865,30]
[391562292,1760655055967,-215.028151,0.00030865,30]
[391562293,1760655055978,-240.113659,0.00030865,30]
[391562294,1760655055998,-215.028151,0.00030865,30]
[391562295,1760655056010,-452.68329255,0.00030865,30]
[391562296,1760655056020,-500.0,0.00030865,120]
[391562297,1760655056030,-500.0,0.00030865,120]
[391562298,1760655056040,-500.0,0.00030865,120]
[391562299,1760655056049,-500.0,0.00030865,120]
[391562300,1760655056059,-500.0,0.00030865,120]
[391562301,1760655056068,-31.17835898,0.00030865,120]
[391562309,1760655707245,1588.7421561,0.00013,2]
[391562310,1760655715283,-156.50228706,0.00013,2]
[391562311,1760655717886,-214.17805287,0.00013,2]
[391562312,1760655721081,-188.56423419,0.00013,2]
[391562313,1760655724119,-203.54771294,0.00012999,2]
[391562314,1760655727448,-96.45228706,0.00012999,2]
[391562315,1760655727476,-60.35769322,0.00013,2]
[391562316,1760655729121,-199.51,0.00013,2]
[391562317,1760655731803,-264.83424814,0.00013,2]
[391562318,1760655734747,-500.0,0.00013,2]
[391562319,1760655742523,-166.66,0.00013,2]
[391562320,1760655744133,-298.0050657,0.00013,2]
[391562321,1760655745677,-183.20918751,0.00013,2]
[391562322,1760655748181,-323.64480172,0.00013,2]
[391562323,1760655752113,-158.6219773,0.00013,2]
[391562324,1760655756013,-406.094376,0.00013,2]
[391562325,1760655758198,-333.6796845,0.00013,2]
[391562326,1760655774135,-258.2595874,0.00013,2]
[391562327,1760655776188,-241.75670372,0.00013,2]
[391562328,1760655779730,-166.66,0.00013,2]
[391562329,1760655782318,-258.88573044,0.00013,2]
[391562330,1760655786028,-258.24329628,0.00013,2]
[391562331,1760655788314,-219.85421918,0.00013,2]
[391562332,1760655805274,-299.4086436,0.00013,2]
[391562333,1760655808565,-241.75670472,0.00013,2]
[391562334,1760655811925,-389.14110777,0.00013,2]
[391562336,1760655815247,-298.76699242,0.00013,2]
[391562337,1760655817884,-254.4060104,0.00013,2]
[391562338,1760655820742,-372.7812942,0.00013,2]
[391562378,1760656231747,-215.99731066,0.00013,2]
[391562379,1760656231758,-215.99731066,0.00013,2]
[391562380,1760656231767,-63.00537868,0.00013341,2]
[391562418,1760656232530,-324.4224919,0.00013341,2]
[391562421,1760656238511,-578.58212942,0.00013341,2]
[391562422,1760656238524,-398.55,0.00013699,2]
[391562423,1760656238537,-966.01,0.00014043,2]
[391562424,1760656238551,-250.0,0.000143,2]
[391562425,1760656238563,-326.56711202,0.000143,2]
[391562426,1760656238576,-966.01,0.00014745,2]
[391562427,1760656238589,-4109.0,0.00015,2]
[391562428,1760656238601,-966.01,0.00015447,2]
[391562429,1760656238613,-966.01,0.00016149,2]
[391562430,1760656238627,-966.01,0.00016852,2]
[391562431,1760656238640,-966.01,0.00017554,2]
[391562432,1760656238652,-966.01,0.00018256,2]
[391562433,1760656238664,-966.01,0.00018958,2]
[391562434,1760656238677,-195.58303114,0.000196,2]
[391562435,1760656238689,-150.0,0.000196,2]
[391562436,1760656238703,-966.01,0.0001966,2]
[391562437,1760656238715,-195.58303114,0.000198,2]
[391562438,1760656238728,-398.55,0.00020187,2]
[391562439,1760656238739,-966.01,0.00020362,2]
[391562440,1760656238751,-966.01,0.00021064,2]
[391562441,1760656238763,-966.01,0.00021766,2]
[391562442,1760656238775,-363.0,0.000224,2]
[391562443,1760656238787,-966.01,0.00022469,2]
[391562444,1760656238801,-189.28,0.00022553,2]
[391562445,1760656238812,-304.9,0.00022934,2]
[391562446,1760656238825,-966.01,0.00023171,2]
[391562447,1760656238839,-184.54571788,0.00023311,2]
[391562448,1760656238859,-1200.0,0.00023686,2]
[391562449,1760656238872,-966.01,0.00023873,2]
[391562450,1760656238884,-300.0,0.00024442,2]
[391562451,1760656238898,-966.01,0.00024575,2]
[391562452,1760656238914,-150.0,0.0002493,2]
[391562453,1760656238931,-300.0,0.0002493,2]
[391562454,1760656238944,-9094.06,0.00024931,2]
[391562455,1760656238958,-999.99,0.00024931,2]
[391562456,1760656238972,-12588.82,0.00024931,2]
[391562457,1760656238986,-9999.99,0.00024931,2]
[391562458,1760656238998,-9999.99,0.00024931,2]
[391562459,1760656239012,-506.36,0.00024931,2]
[391562460,1760656239025,-500.0,0.00024932,2]
[391562462,1760656239038,-299.99,0.00024932,7]
[391562463,1760656239050,-150.99,0.00024932,2]
[391562465,1760656239064,-7312.90318324,0.00024932,2]
[391562466,1760656239082,-2687.08681676,0.00024932,2]
[391562467,1760656239096,-150.99,0.00024932,2]
[391562468,1760656239110,-9999.99,0.00024932,2]
[391562469,1760656239124,-8269.28,0.00024932,2]
[391562470,1760656239139,-304.99,0.00024932,2]
[391562471,1760656239153,-302.37,0.00024932,2]
[391562473,1760656239166,-300.97,0.00024932,2]
[391562475,1760656239179,-302.93,0.00024932,2]
[391562477,1760656239193,-181.39312672,0.00024932,2]
[391562478,1760656239214,-120.90687328,0.00024932,2]
[391562479,1760656239229,-304.22,0.00024933,2]
[391562480,1760656239242,-15.51497026,0.00024944,2]
[391562481,1760656239264,-286.86502974,0.00024944,2]
[391562482,1760656239284,-521.56570684,0.00024973,2]
[391562483,1760656239298,-500.0,0.00024973,2]
[391562484,1760656239311,-500.6728453,0.00024973,2]
[391562485,1760656239324,-500.0,0.00024973,2]
[391562486,1760656239337,-377.61385288,0.00024973,2]
[391562487,1760656239349,-500.0,0.00024973,2]
[391562488,1760656239362,-500.0,0.00024973,2]
[391562489,1760656239374,-327.71,0.00025,7]
[391562490,1760656239387,-533.63,0.00025006,2]
[391562491,1760656239400,-517.23,0.00025077,2]
[391562492,1760656239413,-151.0,0.000252,2]
[391562493,1760656239426,-226.31638113,0.000252,2]
[391562494,1760656239438,-200.0,0.000252,2]
[391562495,1760656239451,-335.451212,0.00025214,2]
[391562496,1760656239464,-529.36,0.00025215,2]
[391562497,1760656239476,-548.57724771,0.00025273,2]
[391562498,1760656239489,-500.0,0.00025273,2]
[391562499,1760656239501,-966.01,0.00025277,2]
[391562500,1760656239514,-724.336,0.00025315,9]
[391562501,1760656239526,-534.46,0.0002548,2]
[391562502,1760656239539,-475.57272817,0.00025973,2]
[391562503,1760656239551,-966.01,0.00025979,2]
[391562504,1760656239564,-527.0,0.00026,2]
[391562505,1760656239576,-527.0,0.00026,2]
[391562506,1760656239589,-527.0,0.00026,2]
[391562507,1760656239601,-327.71,0.00026,7]
[391562508,1760656239614,-500.0,0.00026002,2]
[391562509,1760656239627,-500.0,0.00026002,2]
[391562510,1760656239641,-500.0,0.00026002,2]
[391562511,1760656239653,-483.38515251,0.00026002,2]
[391562512,1760656239664,-500.0,0.00026002,2]
[391562513,1760656239684,-581.50693083,0.00026002,2]
[391562514,1760656239696,-500.0,0.00026002,2]
[391562515,1760656239711,-500.0,0.00026002,2]
[391562516,1760656239723,-500.0,0.00026002,2]
[391562517,1760656239736,-500.0,0.00026002,2]
[391562519,1760656239749,-500.0,0.00026002,2]
[391562520,1760656239763,-500.0,0.00026002,2]
[391562521,1760656239776,-500.0,0.00026002,2]
[391562522,1760656239790,-500.0,0.00026002,2]
[391562523,1760656239802,-500.0,0.00026002,2]
[391562524,1760656239814,-500.0,0.00026002,2]
[391562525,1760656239826,-500.0,0.00026002,2]
[391562526,1760656239839,-500.0,0.00026002,2]
[391562527,1760656239853,-500.0,0.00026002,2]
[391562528,1760656239867,-500.0,0.00026002,2]
[391562529,1760656239881,-500.0,0.00026002,2]
[391562530,1760656239893,-500.0,0.00026002,2]
[391562531,1760656239905,-500.0,0.00026002,2]
[391562532,1760656239918,-500.0,0.00026002,2]
[391562533,1760656239929,-500.0,0.00026002,2]
[391562534,1760656239941,-500.0,0.00026002,2]
[391562535,1760656239953,-500.0,0.00026002,2]
[391562536,1760656239965,-500.0,0.00026002,2]
[391562537,1760656239976,-498.60587791,0.00026002,2]
[391562538,1760656239988,-500.0,0.00026002,2]
[391562539,1760656240000,-523.46,0.00026003,2]